Workbook

Sheet Agi Example
A1: Process Step | B1: Waste Walk/Activity | C1: Individual time (mins) | D1: Number of times done per week | E1: Culmulative minutes | F1: VA or NVA | G1: Value Added per event | H1: NVA per event | I1: Average Distance per event | K1: Transportation | L1: Inventrory | M1: Movement | N1: Waiting & Delays | O1: Overproduction | P1: Overprocessing | Q1: Defects & Rework | R1: Skills & Talent | S1: Remarks
G2: mins | H2: mins | I2: mtrs
A3: 1 | B3: Scraping tops | C3: 5 | D3: =7*2*7 -> 98 | E3: =D3*C3 -> 490 | F3: va | G3: 5 | H3: 0 | I3: =50*2+35 -> 135 | M3: 1 | S3: Lots of walking to find scraper
A4: 2 | B4: Sanding cubicles | C4: 15 | D4: =5*2.5 -> 12.5 | E4: =D4*C4 -> 187.5 | F4: va | G4: 15 | H4: 0 | I4: =70*2*5 -> 700 | L4: 1 | M4: 1 | S4: Don't know when and how much
A5: 3 | B5: Moving cows to collecting yard | C5: 10 | D5: =6*2*7 -> 84 | E5: 840 | F5: nva | G5: 0 | H5: 10 | I5: 180 | K5: 1 | M5: 1 | N5: 1
A6: 4 | B6: Returning cows from collecting yard | C6: 10 | D6: =4*2*7 -> 56 | E6: 560 | F6: nva | G6: 0 | H6: 10 | I6: 180 | K6: 1 | M6: 1 | N6: 1 | S6: Yard 1&2 go back on their own
A7: 5 | B7: Moving dry cows from cubicles and back | C7: 10 | D7: 14 | E7: =D7*C7 -> 140 | F7: nva | G7: 0 | H7: 10 | I7: =60*6 -> 360 | K7: 1 | M7: 1 | S7: Lots of moving cows about
A8: 6 | B8: Scraping feed passages | C8: 3 | D8: =5*2*7 -> 70 | E8: 210 | F8: va | G8: 3 | H8: 0 | I8: =50*3 -> 150 | K8: 1 | M8: 1
A9: 7 | B9: Scraping cubicle passages | C9: 5 | D9: =5*2*7 -> 70 | E9: 350 | F9: va | G9: 5 | H9: 0 | I9: =50*7 -> 350 | K9: 1 | M9: 1
A10: 8 | B10: Raking sand beds | C10: 12 | D10: =5*2*7 -> 70 | E10: 840 | F10: va | G10: 10 | H10: 0 | I10: =50*2 -> 100 | M10: 1 | P10: 1 | S10: Danger of "over-doing beds". They must be clean but don't need to be pretty
A11: 9 | B11: Stalosaning/liming beds | C11: 5 | D11: =5*2 -> 10 | E11: 50 | F11: va | G11: 5 | H11: 0 | I11: 150 | L11: 1 | M11: 1 | S11: Control of amount of stalosan & lime used, could see savings. SBP note?
A12: 10 | B12: Sawdusting yard 3 & 4 | C12: 10 | D12: 7 | E12: 70 | F12: va | G12: 10 | H12: 0 | I12: =6*36*2+50 -> 482 | K12: 1 | L12: 1 | M12: 1 | S12: Lots of walking to get sawdust bags
A13: 11 | B13: Brushing & Cleaning yard 3 & 4 | C13: 5 | D13: 14 | E13: 70 | F13: va | G13: 5 | H13: 0 | I13: =36*4 -> 144 | M13: 1 | P13: 1 | S13: OK if brush is not broken and in right place
A14: 12 | B14: Returning AI cows to cubicles | C14: 15 | D14: 7 | E14: =D14*C14 -> 105 | F14: nva | G14: 0 | H14: 15 | I14: =75*4*2 -> 600 | K14: 1 | M14: 1 | S14: Don't know which cows go to which yards
A15: 15 | B15: Emptying Water troughs | C15: 5 | D15: 14 | E15: 70 | F15: va | G15: 1 | H15: 3 | S15: Yard 3 & 4 are difficult. Not tip-over troughs
A16: 16 | B16: Footbathing | C16: =(10*2+20) -> 40 | D16: 3 | E16: 120 | F16: va | H16: 40 | I16: =400+200 -> 600 | M16: 1 | N16: 1 | S16: Quite disrupting of normal routine
A17: 17 | B17: Pushing food up | C17: 15 | D17: 7 | E17: 105 | F17: nva | G17: 7 | H17: 8 | I17: 500 | M17: 1 | S17: Just another job
A18: 18 | B18: Scraping out cubicle & dispersal yard etc | C18: 15 | D18: =2*7 -> 14 | E18: 210 | F18: nva | G18: 1 | H18: 14 | I18: 500 | K18: 1 | M18: 1
E19: 0
E20: 0
E21: 0
B22: Totals | E22: =SUM(E3:E21) -> 4417.5 | I22: =SUM(I3:I21) -> 5131
B24: Total time allocated
B25: Morning | C25: =6*60 -> 360 | D25: 7 | E25: =D25*C25 -> 2520 | I25: NVA Hrs
B26: Afternoon | C26: =4*60 -> 240 | D26: 7 | E26: =D26*C26 -> 1680
I27: NVA %
E28: =SUM(E25:E27) -> 4200 | I28: VA %
E30: =E22/E28 -> 1.051785714
A58: Process Step | B58: Waste Walk/Activity | C58: Process Step | D58: Pareto Individual | E58: Pareto Cumulative
A59: 3 | B59: Moving cows to collecting yard | C59: 3 | D59: 0.1901528014 | E59: =D59 -> 0.1901528014
A60: 8 | B60: Raking sand beds | C60: 8 | D60: 0.1901528014 | E60: =E59+D60 -> 0.3803056027
A61: 4 | B61: Returning cows from collecting yard | C61: 4 | D61: 0.1267685342 | E61: =E60+D61 -> 0.507074137
A62: 1 | B62: Scraping tops | C62: 1 | D62: 0.1109224675 | E62: 0.6179966044
A63: 7 | B63: Scraping cubicle passages | C63: 7 | D63: 0.0792303339 | E63: 0.6972269383
A64: 6 | B64: Scraping feed passages | C64: 6 | D64: 0.04753820034 | E64: 0.7447651387
A65: 18 | B65: Scraping out cubicle & dispersal yard etc | C65: 18 | D65: 0.04753820034 | E65: 0.792303339
A66: 2 | B66: Sanding cubicles | C66: 2 | D66: 0.04244482173 | E66: 0.8347481607
A67: 5 | B67: Moving dry cows from cubicles and back | C67: 5 | D67: 0.03169213356 | E67: 0.8664402943
A68: 16 | B68: Footbathing | C68: 16 | D68: 0.02716468591 | E68: 0.8936049802
A69: 12 | B69: Returning AI cows to cubicles | C69: 12 | D69: 0.02376910017 | E69: 0.9173740804
A70: 17 | B70: Pushing food up | C70: 17 | D70: 0.02376910017 | E70: 0.9411431805
A71: 10 | B71: Sawdusting yard 3 & 4 | C71: 10 | D71: 0.01584606678 | E71: 0.9569892473
A72: 11 | B72: Brushing & Cleaning yard 3 & 4 | C72: 11 | D72: 0.01584606678 | E72: 0.9728353141
A73: 15 | B73: Emptying Water troughs | C73: 15 | D73: 0.01584606678 | E73: 0.9886813809
A74: 9 | B74: Stalosaning/liming beds | C74: 9 | D74: 0.01131861913 | E74: 1
A75: 13 | B75: Reporting Bulling cows | C75: 13 | D75: 0
A76: 14 | B76: Checking Calving cows | C76: 14 | D76: 0

Sheet Fruit Example
A1: Process Step | B1: Waste Walk/Activity | C1: VA or NVA | D1: Step Time | E1: No. of times done per week | F1: Cumulative Time | G1: Distance | H1: Pareto Ranking | I1: Pareto Individual | J1: Pareto Cumulative | L1: Transportation | M1: Inventrory | N1: Movement | O1: Waiting & Delays | P1: Overproduction | Q1: Overprocessing | R1: Defects & Rework | S1: Skills & Talent | T1: Remarks
D2: mins | F2: mins | G2: mtrs | I2: % | J2: %
A3: 1 | B3: Generate Volume Estimates | C3: NVA | D3: 30 | E3: 1 | F3: =SUM(D3*E3) -> 30 | G3: 0 | I3: =SUM(F3/$F$23) -> 2.689847172e-05
A4: 2 | B4: Create Job Plan (3 people) | C4: NVA | D4: 30 | E4: 5 | F4: 150 | G4: 0 | I4: 0.0001344923586 | Q4: x
A5: 3 | B5: Distribute Job Plan to relevant personnel | C5: NVA | D5: 15 | E5: 5 | F5: 75 | G5: 3000 | I5: 6.72461793e-05 | N5: x
A6: 4 | B6: Transport Staff to Field (120 people) | C6: NVA | D6: 10 | E6: 5 | F6: 50 | G6: 1000 | I6: 4.48307862e-05 | N6: x
A7: 5 | B7: Staff store belongings and collect trollies (120 people) | C7: NVA | D7: 2 | E7: 600 | F7: 1200 | G7: 200 | I7: 0.001075938869 | N7: x
A8: 6 | B8: Staff Collect Trays & Punnets | C8: NVA | D8: 2 | E8: 600 | F8: 1200 | G8: 200 | I8: 0.001075938869 | L8: x
A9: 7 | B9: Supervisor Allocates Rows | C9: NVA | D9: 5 | E9: 200 | F9: 1000 | G9: 0 | I9: 0.0008966157239
A10: 8 | B10: Picking 1 Full Trolley | C10: VA | D10: 90 | E10: =(600*20) -> 12000 | F10: 1080000 | G10: 300 | I10: 0.9683449819
A11: 9 | B11: Take trolley to scan station | C11: NVA | D11: 0.5 | E11: =(600*20) -> 12000 | F11: 6000 | G11: 20 | I11: 0.005379694344 | N11: x
A12: 10 | B12: Place trays on Scan Station | C12: NVA | D12: 0.5 | E12: =(600*20) -> 12000 | F12: 6000 | G12: 0 | I12: 0.005379694344 | N12: x
A13: 11 | B13: Stick Picker No on Trays if leaving trolley | C13: NVA | D13: 0.5 | E13: =(600*20) -> 12000 | F13: 6000 | G13: 0 | I13: 0.005379694344
A14: 12 | B14: Spot check weights/ QC check | C14: NVA | D14: 0.5 | E14: 200 | F14: 100 | G14: 0 | I14: 8.966157239e-05 | Q14: x
A15: 13 | B15: Data Entry on Tablet | C15: NVA | D15: 0.5 | E15: =(600*20) -> 12000 | F15: 6000 | G15: 0 | I15: 0.005379694344
A16: 14 | B16: Trays to Fridge | C16: NVA | D16: 0.5 | E16: =(600*20) -> 12000 | F16: 6000 | G16: 5 | I16: 0.005379694344 | L16: x
A17: 15 | B17: Fridge to Packhouse | C17: NVA | D17: 15 | E17: 100 | F17: 1500 | G17: 1000 | I17: 0.001344923586 | L17: x
B23: Totals: | D23: =SUM(D3:D22) -> 202 | F23: =SUM(F3:F22) -> 1115305
B25: Total Time | C25: =SUM(F23) -> 1115305
B26: Total VA | C26: =(F10) -> 1080000 | G26: %VA | H26: =(C26/C25) -> 0.9683449819 | J26: (Total VA/Total Time X 100)
B27: Total NVA | C27: =SUM(C25-C26) -> 35305 | G27: %NVA | H27: =(C27/C25) -> 0.03165501813 | J27: (Total NVA/Total Time X 100)

Sheet Coffee Example
A1: Process Step | B1: Waste Walk/Activity | C1: VA or NVA | D1: Step Time | E1: No. of times done per day | F1: Cumulative Time | G1: Distance | H1: Pareto Ranking | I1: Pareto Individual | J1: Pareto Cumulative | L1: Transportation | M1: Inventrory | N1: Movement | O1: Waiting & Delays | P1: Overproduction | Q1: Overprocessing | R1: Defects & Rework | S1: Skills & Talent | T1: Remarks
D2: secs | F2: secs | G2: mtrs | I2: % | J2: %
A3: 1 | B3: Customer queing time | C3: NVA | D3: 113 | E3: 1500 | F3: =(E3*D3) -> 169500 | G3: 4 | H3: 1 | I3: =SUM(F3/$F$18) -> 0.5512195122 | N3: x | O3: x | S3: x
A4: 2 | B4: Greet customer & take the order | C4: VA | D4: 5 | E4: 2000 | F4: 10000 | G4: 0 | H4: 6 | I4: 0.0325203252
A5: 3 | B5: Heat/cup glass | C5: NVA | D5: 13 | E5: 500 | F5: 6500 | G5: 2 | H5: 9 | I5: 0.02113821138 | L5: x | N5: x | Q5: x
A6: 4 | B6: Prepare milk | C6: NVA | D6: 25 | E6: 500 | F6: 12500 | G6: 1 | H6: 5 | I6: 0.0406504065 | L6: x | N6: x
A7: 5 | B7: Prepare coffee shots | C7: NVA | D7: 12 | E7: 500 | F7: 6000 | G7: 3 | H7: 10 | I7: 0.01951219512 | L7: x | N7: x | O7: x
A8: 6 | B8: Heat milk | C8: NVA | D8: 41 | E8: 500 | F8: 20500 | G8: 2 | H8: 3 | I8: 0.06666666667 | L8: x | N8: x | P8: x
A9: 7 | B9: Build drink | C9: NVA | D9: 17 | E9: 500 | F9: 8500 | G9: 3 | H9: 7 | I9: 0.02764227642 | L9: x | N9: x | O9: x
A10: 8 | B10: Take drink to coffee pick-up point | C10: NVA | D10: 4 | E10: 2000 | F10: 8000 | G10: 5 | H10: 8 | I10: 0.02601626016 | L10: x | N10: x
A11: 9 | B11: Serve drink to the customer | C11: VA | D11: 7 | E11: 2000 | F11: 14000 | G11: 4 | H11: 4 | I11: 0.04552845528 | N11: x
A12: 10 | B12: Take payment | C12: VA | D12: 26 | E12: 2000 | F12: 52000 | G12: 1 | H12: 2 | I12: 0.1691056911 | N12: x | O12: x
A13: 11
B18: Totals: | D18: =SUM(D3:D13) -> 263 | F18: =SUM(F3:F17) -> 307500
B20: Total Time | C20: =(F18) -> 307500
B21: Total VA | C21: =SUM(F4+F11+F12) -> 76000 | G21: %VA | H21: =(C21/C20) -> 0.2471544715 | J21: (Total VA/Total Time X 100)
B22: Total NVA | C22: =SUM(C20-C21) -> 231500 | G22: %NVA | H22: =(C22/C20) -> 0.7528455285 | J22: (Total NVA/Total Time X 100)

Sheet Coffee example Pareto
A1: Process Step | B1: Waste Walk/Activity | C1: VA or NVA | D1: Step Time | E1: No. of times done per day | F1: Cumulative Time | G1: Distance | H1: Pareto Ranking | I1: Pareto Individual | J1: Pareto Cumulative | L1: Transportation | M1: Inventrory | N1: Movement | O1: Waiting & Delays | P1: Overproduction | Q1: Overprocessing | R1: Defects & Rework | S1: Skills & Talent | T1: Remarks
D2: secs | F2: secs | G2: mtrs | I2: % | J2: %
A3: 1 | B3: Customer queing time | C3: NVA | D3: 113 | E3: 1500 | F3: =(E3*D3) -> 169500 | G3: 4 | H3: 1 | I3: =SUM(F3/$F$18) -> 0.5512195122 | J3: =SUM(I3) -> 0.5512195122 | N3: x | O3: x | S3: x
A4: 2 | B4: Take payment | C4: VA | D4: 26 | E4: 2000 | F4: 52000 | G4: 1 | H4: 2 | I4: 0.1691056911 | J4: =SUM($I$3:I4) -> 0.7203252033 | N4: x | O4: x
A5: 3 | B5: Heat milk | C5: NVA | D5: 41 | E5: 500 | F5: 20500 | G5: 2 | H5: 3 | I5: 0.06666666667 | J5: =SUM($I$3:I5) -> 0.7869918699 | L5: x | N5: x | P5: x
A6: 4 | B6: Serve drink to the customer | C6: VA | D6: 7 | E6: 2000 | F6: 14000 | G6: 4 | H6: 4 | I6: 0.04552845528 | J6: =SUM($I$3:I6) -> 0.8325203252 | N6: x
A7: 5 | B7: Prepare milk | C7: NVA | D7: 25 | E7: 500 | F7: 12500 | G7: 1 | H7: 5 | I7: 0.0406504065 | J7: =SUM($I$3:I7) -> 0.8731707317 | L7: x | N7: x
A8: 6 | B8: Greet customer & take the order | C8: VA | D8: 5 | E8: 2000 | F8: 10000 | G8: 0 | H8: 6 | I8: 0.0325203252 | J8: =SUM($I$3:I8) -> 0.9056910569
A9: 7 | B9: Build drink | C9: NVA | D9: 17 | E9: 500 | F9: 8500 | G9: 3 | H9: 7 | I9: 0.02764227642 | J9: =SUM($I$3:I9) -> 0.9333333333 | L9: x | N9: x | O9: x
A10: 8 | B10: Take drink to coffee pick-up point | C10: NVA | D10: 4 | E10: 2000 | F10: 8000 | G10: 5 | H10: 8 | I10: 0.02601626016 | J10: =SUM($I$3:I10) -> 0.9593495935 | L10: x | N10: x
A11: 9 | B11: Heat/cup glass | C11: NVA | D11: 13 | E11: 500 | F11: 6500 | G11: 2 | H11: 9 | I11: 0.02113821138 | J11: =SUM($I$3:I11) -> 0.9804878049 | L11: x | N11: x | Q11: x
A12: 10 | B12: Prepare coffee shots | C12: NVA | D12: 12 | E12: 500 | F12: 6000 | G12: 3 | H12: 10 | I12: 0.01951219512 | J12: =SUM($I$3:I12) -> 1 | L12: x | N12: x | O12: x
A13: 11
B18: Totals: | D18: =SUM(D3:D17) -> 263 | F18: =SUM(F3:F17) -> 307500

Sheet Fruit Example with pareto
A1: Process Step | B1: Waste Walk/Activity | C1: VA or NVA | D1: Step Time | E1: Cumulative Time | F1: Distance | G1: Pareto Ranking | H1: Pareto Individual | I1: Pareto Cumulative | K1: Transportation | L1: Inventrory | M1: Movement | N1: Waiting & Delays | O1: Overproduction | P1: Overprocessing | Q1: Defects & Rework | R1: Skills & Talent | S1: Remarks
D2: mins | E2: mins | F2: mtrs | H2: % | I2: %
A3: 8 | B3: Picking 1 Full Trolley | C3: VA | D3: 90 | F3: 300 | H3: =SUM(D3/$C$25) -> 0.4455445545 | I3: =SUM(H3) -> 0.4455445545
A4: 1 | B4: Generate Volume Estimates | C4: NVA | D4: 30 | F4: 0 | H4: 0.1485148515 | I4: =SUM($H$3:H4) -> 0.5940594059
A5: 2 | B5: Create Job Plan (3 people) | C5: NVA | D5: 30 | F5: 0 | H5: 0.1485148515 | I5: =SUM($H$3:H5) -> 0.7425742574 | P5: x
A6: 3 | B6: Distribute Job Plan to relevant personnel | C6: NVA | D6: 15 | F6: 3000 | H6: 0.07425742574 | I6: =SUM($H$3:H6) -> 0.8168316832 | M6: x
A7: 15 | B7: Fridge to Packhouse | C7: NVA | D7: 15 | F7: 1000 | H7: 0.07425742574 | I7: =SUM($H$3:H7) -> 0.8910891089 | K7: x
A8: 4 | B8: Transport Staff to Field (120 people) | C8: NVA | D8: 10 | F8: 1000 | H8: 0.0495049505 | I8: =SUM($H$3:H8) -> 0.9405940594 | M8: x
A9: 7 | B9: Supervisor Allocates Rows | C9: NVA | D9: 5 | F9: 0 | H9: 0.02475247525 | I9: =SUM($H$3:H9) -> 0.9653465347
A10: 5 | B10: Staff store belongings and collect trollies (120 people) | C10: NVA | D10: 2 | F10: 200 | H10: 0.009900990099 | I10: =SUM($H$3:H10) -> 0.9752475248 | M10: x
A11: 6 | B11: Staff Collect Trays & Punnets | C11: NVA | D11: 2 | F11: 200 | H11: 0.009900990099 | I11: =SUM($H$3:H11) -> 0.9851485149 | K11: x
A12: 9 | B12: Take trolley to scan station | C12: NVA | D12: 0.5 | F12: 20 | H12: 0.002475247525 | I12: =SUM($H$3:H12) -> 0.9876237624 | M12: x
A13: 10 | B13: Place trays on Scan Station | C13: NVA | D13: 0.5 | F13: 0 | H13: 0.002475247525 | I13: =SUM($H$3:H13) -> 0.9900990099 | M13: x
A14: 11 | B14: Stick Picker No on Trays if leaving trolley | C14: NVA | D14: 0.5 | F14: 0 | H14: 0.002475247525 | I14: =SUM($H$3:H14) -> 0.9925742574
A15: 12 | B15: Spot check weights/ QC check | C15: NVA | D15: 0.5 | F15: 0 | H15: 0.002475247525 | I15: =SUM($H$3:H15) -> 0.995049505 | P15: x
A16: 13 | B16: Data Entry on Tablet | C16: NVA | D16: 0.5 | F16: 0 | H16: 0.002475247525 | I16: =SUM($H$3:H16) -> 0.9975247525
A17: 14 | B17: Trays to Fridge | C17: NVA | D17: 0.5 | F17: 5 | H17: 0.002475247525 | I17: =SUM($H$3:H17) -> 1 | K17: x
B23: Totals:
B25: Total Time | C25: =SUM(D3:D23) -> 202
B26: Total VA | C26: 90 | F26: %VA | G26: =(C26/C25) -> 0.4455445545 | I26: (Total VA/Total Time X 100)
B27: Total NVA | C27: =SUM(C25-C26) -> 112 | F27: %NVA | G27: =(C27/C25) -> 0.5544554455 | I27: (Total NVA/Total Time X 100)

Sheet Blank Waste Walk
A1: Process Step | B1: Waste Walk/Activity | C1: VA or NVA | D1: Step Time | E1: No. of times done per day | F1: Cumulative Time | G1: Distance | H1: Pareto Ranking | I1: Pareto Individual | J1: Pareto Cumulative | L1: Transportation | M1: Inventrory | N1: Movement | O1: Waiting & Delays | P1: Overproduction | Q1: Overprocessing | R1: Defects & Rework | S1: Skills & Talent | T1: Remarks
D2: secs | F2: secs | G2: mtrs | I2: % | J2: %
A3: 1 | F3: =(E3*D3) -> 0 | I3: =SUM(F3/$F$18) -> 
A4: 2 | F4: 0
A5: 3 | F5: 0
A6: 4 | F6: 0
A7: 5 | F7: 0
A8: 6 | F8: 0
A9: 7 | F9: 0
A10: 8 | F10: 0
A11: 9 | F11: 0
A12: 10 | F12: 0
A13: 11
B18: Totals: | D18: =SUM(D3:D13) -> 0 | F18: =SUM(F3:F17) -> 0
B20: Total Time | C20: =(F18) -> 0
B21: Total VA | C21: =SUM(F4+F11+F12) -> 0 | G21: %VA | H21: =(C21/C20) ->  | J21: (Total VA/Total Time X 100)
B22: Total NVA | C22: =SUM(C20-C21) -> 0 | G22: %NVA | H22: =(C22/C20) ->  | J22: (Total NVA/Total Time X 100)

Sheet Blank Pareto Analysis
A1: Process Step | B1: Pareto Analysis | C1: VA or NVA | D1: Step Time | E1: No. of times done per day | F1: Cumulative Time | G1: Distance | H1: Pareto Ranking | I1: Pareto Individual | J1: Pareto Cumulative | L1: Transportation | M1: Inventrory | N1: Movement | O1: Waiting & Delays | P1: Overproduction | Q1: Overprocessing | R1: Defects & Rework | S1: Skills & Talent | T1: Remarks
D2: secs | F2: secs | G2: mtrs | I2: % | J2: %
A3: 1 | F3: =(E3*D3) -> 0 | I3: =SUM(F3/$F$18) ->  | J3: =SUM(I3) -> 
A4: 2 | F4: 0 | J4: =SUM($I$3:I4) -> 
A5: 3 | F5: 0 | J5: =SUM($I$3:I5) -> 
A6: 4 | F6: 0 | J6: =SUM($I$3:I6) -> 
A7: 5 | F7: 0 | J7: =SUM($I$3:I7) -> 
A8: 6 | F8: 0 | J8: =SUM($I$3:I8) -> 
A9: 7 | F9: 0 | J9: =SUM($I$3:I9) -> 
A10: 8 | F10: 0 | J10: =SUM($I$3:I10) -> 
A11: 9 | F11: 0 | J11: =SUM($I$3:I11) -> 
A12: 10 | F12: 0 | J12: =SUM($I$3:I12) -> 
A13: 11
B18: Totals: | D18: =SUM(D3:D13) -> 0 | F18: =SUM(F3:F17) -> 0
B20: Total Time | C20: =(F18) -> 0
B21: Total VA | C21: =SUM(F4+F11+F12) -> 0 | G21: %VA | H21: =(C21/C20) ->  | J21: (Total VA/Total Time X 100)
B22: Total NVA | C22: =SUM(C20-C21) -> 0 | G22: %NVA | H22: =(C22/C20) ->  | J22: (Total NVA/Total Time X 100)
